bitfinex/quotes_BTCUSD_20251213
["timestamp","ask_amount","ask_price","bid_price","bid_amount"]
[1765630812831,0.04254875,90470.0,90469.0,0.36496479]
[1765630814550,0.04254875,90470.0,90469.0,0.14389459]
[1765630814741,0.04254875,90470.0,90469.0,0.36496479]
[1765630815812,0.0433818,90470.0,90469.0,0.36496479]
[1765630816903,0.0433818,90470.0,90469.0,0.14389459]
[1765630817104,0.0433818,90470.0,90469.0,0.36496479]
[1765630817515,0.0433818,90470.0,90469.0,0.14389459]
[1765630821278,0.0433818,90470.0,90469.0,0.03319459]
[1765630826561,0.0433818,90470.0,90469.0,0.14389459]
[1765630826687,0.0433818,90470.0,90469.0,0.03319459]
[1765630829111,0.039,90469.0,90468.0,0.2042649]
[1765630829259,0.05096,90469.0,90468.0,0.2042649]
[1765630829639,0.05096,90469.0,90467.0,0.34282709]
[1765630829847,0.039,90468.0,90467.0,0.23212709]
[1765630831727,0.04,90468.0,90467.0,0.23212709]
[1765630831906,0.04,90468.0,90467.0,0.01105375]
[1765630833972,0.04,90468.0,90467.0,0.12175375]
[1765630835530,0.04,90468.0,90467.0,0.01105375]
[1765630836352,0.04,90468.0,90467.0,0.12175375]
[1765630840900,0.04077357,90468.0,90467.0,0.12175375]
[1765630841103,0.01700357,90468.0,90467.0,0.12175375]
[1765630841510,0.00177357,90468.0,90467.0,0.12175375]
[1765630841743,0.00177357,90468.0,90467.0,0.13875732]
[1765630845572,0.02554357,90468.0,90467.0,0.13875732]
[1765630846755,0.02554357,90468.0,90467.0,0.02805732]
[1765630846968,0.02554357,90468.0,90467.0,0.13875732]
[1765630847922,0.00177357,90468.0,90467.0,0.13875732]
[1765630848109,0.00177357,90468.0,90467.0,0.02805732]
[1765630848333,0.00177357,90468.0,90467.0,0.13875732]
[1765630852925,0.02554357,90468.0,90467.0,0.13875732]
[1765630855774,0.04133357,90468.0,90467.0,0.13875732]
[1765630857346,0.04133357,90468.0,90465.0,0.01105399]
[1765630857549,0.04133357,90468.0,90461.0,0.01105448]
[1765630857550,0.0272,90466.0,90463.0,0.22108486]
[1765630857758,0.01141,90466.0,90462.0,0.01105436]
[1765630857988,0.0272,90463.0,90462.0,0.23213926]
[1765630858535,0.05077,90463.0,90462.0,0.23213926]
[1765630859105,0.00212875,90470.0,90469.0,0.1107]
[1765630859526,0.00212875,90470.0,90469.0,0.3317702]
[1765630860071,0.00212875,90470.0,90469.0,0.3431802]
[1765630860662,0.00312875,90470.0,90469.0,0.3431802]
[1765630861637,0.00312875,90470.0,90469.0,0.2324802]
[1765630861839,0.02669875,90470.0,90469.0,0.3431802]
[1765630862124,0.04248875,90470.0,90469.0,0.01141]
[1765630862322,0.08117559,90470.0,90467.0,0.1107]
[1765630862518,0.01579,90468.0,90467.0,0.1107]
[1765630862718,0.04342408,90468.0,90467.0,0.1107]
[1765630862925,0.06699408,90468.0,90467.0,0.1107]
[1765630863152,0.06776765,90468.0,90467.0,0.1107]
[1765630863762,0.06876765,90468.0,90467.0,0.1107]
[1765630864188,0.01105387,90466.0,90463.0,0.12211]
[1765630864399,0.06035961,90464.0,90461.0,0.01105448]
[1765630864621,0.04456961,90464.0,90461.0,0.01105448]
[1765630864827,0.02779509,90462.0,90461.0,0.01105448]
[1765630865203,0.05136509,90462.0,90461.0,0.01105448]
[1765630866216,0.05136509,90462.0,90461.0,0.01205448]
[1765630866819,0.05236509,90462.0,90461.0,0.01205448]
[1765630867406,0.05236509,90462.0,90461.0,0.01105448]
[1765630869627,0.05236509,90462.0,90459.0,0.3428473]
[1765630869837,0.01579,90460.0,90459.0,0.3428473]
[1765630870252,0.03936,90460.0,90459.0,0.3428473]
[1765630871979,0.04036,90460.0,90459.0,0.3428473]
[1765630873255,0.04036,90460.0,90459.0,0.2321473]
[1765630874085,0.04036,90460.0,90459.0,0.3428473]
[1765630875119,0.04089559,90460.0,90459.0,0.3428473]
[1765630878570,0.00153559,90460.0,90459.0,0.3428473]
[1765630887459,0.00153559,90460.0,90459.0,0.2321473]
[1765630887666,0.00153559,90460.0,90459.0,0.3428473]
[1765630894052,0.00053559,90460.0,90459.0,0.3428473]
[1765630894669,0.00053559,90460.0,90459.0,0.3438473]
[1765630903919,0.00053559,90460.0,90459.0,0.3441903]
[1765630908898,0.00053559,90460.0,90459.0,0.2334903]
[1765630909101,0.02337559,90460.0,90459.0,0.2334903]
[1765630909301,0.00053559,90460.0,90459.0,0.2334903]
[1765630909461,0.00053559,90460.0,90459.0,0.3441903]
[1765630921798,0.03942559,90460.0,90459.0,0.2334903]
[1765630922022,0.03942559,90460.0,90459.0,0.3441903]
[1765630922153,0.01612559,90460.0,90459.0,0.3441903]
[1765630922364,0.00053559,90460.0,90459.0,0.3441903]
[1765630922608,0.00053559,90460.0,90459.0,0.3431903]
[1765630923024,0.00153559,90460.0,90459.0,0.3431903]
[1765630927987,0.00153559,90460.0,90459.0,0.37638982]
[1765630932419,0.00153559,90460.0,90459.0,0.26568982]
[1765630932635,0.00153559,90460.0,90459.0,0.37638982]
[1765630936600,0.00153559,90460.0,90459.0,0.26568982]
[1765630936845,0.00153559,90460.0,90459.0,0.37638982]
[1765630938223,0.01712559,90460.0,90459.0,0.37638982]
[1765630938418,0.26151778,90460.0,90459.0,0.14424252]
[1765630938597,0.04042559,90460.0,90459.0,0.36533715]
[1765630940125,0.04042559,90460.0,90459.0,0.14424252]
[1765630949658,0.04042559,90460.0,90459.0,0.03354252]
[1765630949869,0.04042559,90460.0,90459.0,0.14424252]
[1765630961183,0.04042559,90460.0,90459.0,0.03354252]
[1765630961314,0.26151778,90460.0,90459.0,0.000343]
[1765630961519,0.01105668,90443.0,90439.0,0.1107]
[1765630961719,0.01223,90441.0,90439.0,0.1107]
[1765630961920,0.02766,90440.0,90439.0,0.1107]
[1765630962218,0.0503,90440.0,90439.0,0.1107]
[1765630962666,0.0503,90440.0,90439.0,0.13836]
[1765630962811,0.27144108,90440.0,90439.0,0.02766]
[1765630963008,0.0503,90440.0,90439.0,0.02766]
[1765630963216,0.0503,90440.0,90439.0,0.03066]
[1765630963436,0.0503,90440.0,90439.0,0.02766]
[1765630963892,0.08445961,90440.0,90439.0,0.02766]
[1765630964094,0.08445961,90440.0,90439.0,0.03166]
[1765630964504,0.08445961,90440.0,90439.0,0.004]
[1765630964706,0.01105754,90436.0,90433.0,0.01105791]
[1765630965094,0.01543,90434.0,90431.0,0.02849815]
[1765630965306,0.02264,90435.0,90432.0,0.01105803]
[1765630965426,0.02264,90434.0,90432.0,0.01105803]
[1765630965665,0.01543,90433.0,90432.0,0.01105803]
[1765630965864,0.01543,90433.0,90432.0,0.23221868]
[1765630966066,0.03807,90433.0,90432.0,0.23221868]
[1765630966288,0.03807,90433.0,90432.0,0.03369803]
[1765630966492,0.03807,90433.0,90432.0,0.25485868]
[1765630967558,0.03807,90433.0,90432.0,0.25585868]
[1765630968005,0.03807,90433.0,90432.0,0.25485868]
[1765630969855,0.03807,90433.0,90432.0,0.02264]
[1765630977849,0.02425,90438.0,90436.0,0.22115086]
[1765630978038,0.02425,90438.0,90437.0,0.1107]
[1765630978441,0.03994,90438.0,90437.0,0.1107]
[1765630979052,0.04094,90438.0,90437.0,0.1107]
[1765630979251,0.03994,90438.0,90437.0,0.1107]
[1765630979769,0.04094,90438.0,90437.0,0.1107]
[1765630980067,0.04194,90438.0,90437.0,0.1107]
[1765630980439,0.04094,90438.0,90437.0,0.1107]
[1765630980638,0.04194,90438.0,90437.0,0.1107]
[1765630985176,0.02694,90438.0,90437.0,0.1107]
[1765630987259,0.02694,90438.0,90435.0,0.01105766]
[1765630987482,0.03875754,90436.0,90432.0,0.12175803]
[1765630987629,0.0277,90433.0,90432.0,0.12175803]
[1765630988054,0.05195,90433.0,90432.0,0.12175803]
[1765630992492,0.0277,90433.0,90432.0,0.12175803]
[1765630994443,0.01201,90433.0,90432.0,0.01105803]
[1765630994641,0.01201,90433.0,90432.0,0.12175803]
[1765630995255,0.01201,90436.0,90435.0,0.33185331]
[1765630996259,0.03626,90436.0,90435.0,0.33185331]
[1765630997178,0.05195,90436.0,90435.0,0.33185331]
[1765630997379,0.05295,90436.0,90435.0,0.33185331]
[1765630997785,0.05295,90436.0,90435.0,0.1107]
[1765631000071,0.05295,90436.0,90434.0,0.22115419]
[1765631000316,0.02425,90435.0,90434.0,0.22115419]
[1765631000703,0.03994,90435.0,90434.0,0.22115419]
[1765631001742,0.04094,90435.0,90433.0,0.34291611]
[1765631001888,0.05195,90434.0,90433.0,0.34291611]
[1765631004047,0.05295,90434.0,90433.0,0.34291611]
[1765631004263,0.05295,90434.0,90433.0,0.1107]
[1765631005166,0.06400778,90434.0,90431.0,0.02849815]
[1765631005384,0.01521,90432.0,90431.0,0.01744]
[1765631005865,0.0387,90432.0,90431.0,0.01744]
[1765631006296,0.0387,90432.0,90431.0,0.12814]
[1765631006721,0.0387,90432.0,90431.0,0.01744]
[1765631007799,0.0387,90432.0,90431.0,0.12814]
[1765631012621,0.01105888,90425.0,90420.0,0.07678726]
[1765631012821,0.01105888,90425.0,90421.0,0.01105937]
[1765631013035,0.02349,90424.0,90422.0,0.01105925]
[1765631014083,0.02349,90424.0,90422.0,0.23224435]
[1765631014289,0.01208,90425.0,90424.0,0.22118021]
[1765631016477,0.01208,90425.0,90424.0,0.22618021]
[1765631021435,0.02729,90425.0,90424.0,0.22618021]
[1765631021617,0.05078,90425.0,90424.0,0.22618021]
[1765631022739,0.05078,90425.0,90424.0,0.33688021]
[1765631023163,0.05078,90425.0,90424.0,0.1157]
[1765631023538,0.27195777,90425.0,90424.0,0.005]
[1765631023911,0.05078,90425.0,90424.0,0.005]
[1765631024133,0.05078,90425.0,90424.0,0.002]
[1765631024268,0.05078,90425.0,90422.0,0.01105925]
[1765631024474,0.01521,90423.0,90422.0,0.01105925]
[1765631024675,0.01521,90423.0,90422.0,0.23224273]
[1765631024883,0.0387,90423.0,90422.0,0.23224273]
[1765631026832,0.0387,90423.0,90422.0,0.23324273]
[1765631027035,0.0387,90423.0,90422.0,0.001]
[1765631027833,0.0387,90423.0,90422.0,0.2221851]
[1765631029133,0.0387,90423.0,90422.0,0.001]
[1765631034178,0.0387,90423.0,90422.0,0.1117]
[1765631034437,0.0387,90423.0,90422.0,0.001]
[1765631045509,0.01208,90425.0,90423.0,0.22118266]
[1765631046074,0.01208,90425.0,90424.0,0.1107]
[1765631046780,0.03654,90425.0,90424.0,0.1107]
[1765631048891,0.05311,90425.0,90424.0,0.1107]
[1765631049295,0.01248,90442.0,90436.0,0.22114916]
[1765631049541,0.01248,90442.0,90435.0,0.01105766]
[1765631049714,0.01248,90442.0,90440.0,0.22113933]
[1765631050548,0.01448,90442.0,90440.0,0.22113933]
[1765631051241,0.01248,90442.0,90440.0,0.22113933]
[1765631051460,0.03770892,90446.0,90443.0,0.23219043]
[1765631051662,0.03770892,90446.0,90445.0,0.22112886]
[1765631053208,0.03770892,90446.0,90445.0,0.33182886]
[1765631053670,0.03870892,90446.0,90445.0,0.33182886]
[1765631057410,0.03870892,90446.0,90445.0,0.36503242]
[1765631059342,0.03770892,90446.0,90445.0,0.36503242]
[1765631060228,0.03870892,90446.0,90445.0,0.36503242]
[1765631077459,0.03870892,90446.0,90445.0,0.38247242]
[1765631080776,0.03870892,90446.0,90445.0,0.27177242]
[1765631080995,0.03870892,90446.0,90445.0,0.38247242]
[1765631083093,0.001,90446.0,90445.0,0.38247242]
[1765631087315,0.001,90446.0,90445.0,0.27177242]
[1765631088332,0.001,90446.0,90445.0,0.38247242]
[1765631092344,0.001,90446.0,90445.0,0.14390356]
[1765631092522,0.001,90446.0,90445.0,0.12814]
[1765631092524,0.05155,90446.0,90445.0,0.12814]
[1765631092726,0.06421919,90446.0,90445.0,0.01744]
[1765631092926,0.05316287,90446.0,90445.0,0.01744]
[1765631093337,0.05316287,90446.0,90445.0,0.23856886]
[1765631098866,0.01509287,90446.0,90445.0,0.23856886]
[1765631103505,0.01509287,90446.0,90445.0,0.34926886]
[1765631104010,0.001,90446.0,90445.0,0.34926886]
[1765631104535,0.001,90446.0,90445.0,0.36436173]
[1765631108871,0.001,90446.0,90445.0,0.34926886]
[1765631124064,0.001,90446.0,90445.0,0.23856886]
[1765631124264,0.001,90446.0,90445.0,0.34926886]
[1765631134289,0.001,90446.0,90445.0,0.23856886]
[1765631134580,0.001,90446.0,90445.0,0.34926886]
[1765631141263,0.001,90446.0,90445.0,0.23856886]
[1765631141636,0.001,90446.0,90445.0,0.34926886]
[1765631145282,0.001,90446.0,90445.0,0.35226886]
[1765631145600,0.00023806,90450.0,90449.0,0.22111908]
[1765631145807,0.00023806,90450.0,90449.0,0.33181908]
[1765631146780,0.00023806,90450.0,90449.0,0.33381908]
[1765631147079,0.00023806,90450.0,90449.0,0.33581908]
[1765631163620,0.00023806,90450.0,90449.0,1.62651908]
[1765631164054,0.00023806,90450.0,90449.0,1.65971562]
[1765631164460,0.00023806,90450.0,90449.0,1.65771562]
[1765631164945,0.00023806,90450.0,90449.0,1.66271562]
[1765631165184,0.00023806,90450.0,90449.0,1.66071562]
[1765631165404,0.00023806,90450.0,90449.0,1.65971562]
[1765631166556,0.00023806,90450.0,90449.0,1.66371562]
[1765631167659,0.00023806,90450.0,90449.0,0.66371562]
[1765631167859,0.00023806,90450.0,90449.0,1.66371562]
[1765631177004,0.00023806,90450.0,90449.0,1.68002079]
[1765631179951,0.00023806,90450.0,90449.0,0.68002079]
[1765631180142,0.00023806,90450.0,90449.0,1.66371562]
[1765631185709,0.00023806,90450.0,90449.0,1.57045562]
[1765631185928,0.00023806,90450.0,90449.0,1.68115562]
[1765631186565,0.00023806,90450.0,90449.0,1.67715562]
[1765631186911,0.00023806,90450.0,90449.0,1.67315562]
[1765631187316,0.00023806,90450.0,90449.0,1.67615562]
[1765631187866,0.00023806,90450.0,90449.0,1.68015562]
[1765631190012,0.00023806,90450.0,90449.0,1.38945562]
[1765631190792,0.00023806,90450.0,90449.0,0.26131562]
[1765631190971,0.00023806,90450.0,90449.0,0.24555908]
[1765631191363,0.00023806,90450.0,90449.0,0.24155908]
[1765631191574,0.00023806,90450.0,90449.0,0.23855908]
[1765631191778,0.00023806,90450.0,90449.0,0.24255908]
[1765631192003,0.00023806,90450.0,90449.0,0.24355908]
[1765631192232,0.00023806,90450.0,90449.0,0.23955908]
[1765631192620,0.00023806,90450.0,90449.0,0.24155908]
[1765631217256,0.00023806,90450.0,90449.0,0.35225908]
[1765631221878,0.00023806,90450.0,90449.0,0.33481908]
[1765631222001,0.00023806,90450.0,90449.0,0.35225908]
[1765631232614,0.04042806,90450.0,90449.0,0.24155908]
[1765631233021,0.01627806,90450.0,90449.0,0.24155908]
[1765631233408,0.01627806,90450.0,90449.0,0.23955908]
[1765631233614,0.04042806,90450.0,90449.0,0.22211908]
[1765631233818,0.04042806,90450.0,90449.0,0.001]
[1765631233819,0.04204093,90450.0,90449.0,0.001]
[1765631234780,0.04204093,90450.0,90448.0,0.22111922]
[1765631234984,0.05171,90449.0,90448.0,0.22111922]
[1765631235186,0.05332287,90449.0,90448.0,0.22111922]
[1765631236352,0.05432287,90449.0,90447.0,0.01105619]
[1765631236575,0.04019,90448.0,90447.0,0.01105619]
[1765631236799,0.01105632,90446.0,90443.0,0.1107]
[1765631236972,0.02756,90444.0,90443.0,0.1107]
[1765631237431,0.05171,90444.0,90443.0,0.12175668]
[1765631238201,0.05171,90444.0,90443.0,0.34288989]
[1765631238824,0.05271,90444.0,90443.0,0.34288989]
[1765631245331,0.05271,90444.0,90443.0,0.1107]
[1765631247312,0.05271,90444.0,90441.0,0.23219372]
[1765631247515,0.02676,90442.0,90441.0,0.34289372]
[1765631248107,0.04949,90442.0,90441.0,0.34289372]
[1765631248618,0.04949,90442.0,90441.0,0.34389372]
[1765631248775,0.04899,90442.0,90441.0,0.34289372]
[1765631249178,0.04899,90442.0,90441.0,0.34389372]
[1765631249377,0.04899,90442.0,90441.0,0.23319372]
[1765631249580,0.04899,90442.0,90441.0,0.34389372]
[1765631252346,0.04899,90442.0,90441.0,0.12275693]
[1765631252840,0.04899,90442.0,90441.0,0.01205693]
[1765631253517,0.04899,90442.0,90441.0,0.001]
[1765631254616,0.01105729,90438.0,90434.0,0.01105778]
[1765631254816,0.02676,90435.0,90434.0,0.01105778]
[1765631255023,0.04949,90435.0,90434.0,0.01105778]
[1765631255581,0.04949,90435.0,90433.0,0.23221385]
[1765631255840,0.04949,90434.0,90433.0,0.23221385]
[1765631257676,0.04949,90434.0,90433.0,0.23321385]
[1765631257873,0.04949,90434.0,90433.0,0.001]
[1765631258175,0.04949,90434.0,90433.0,0.2241582]
[1765631258624,0.04949,90434.0,90433.0,0.003]
[1765631259338,0.27064576,90434.0,90433.0,0.003]
[1765631260119,0.27064576,90434.0,90433.0,0.002]
[1765631260323,0.27264576,90434.0,90433.0,0.002]
[1765631260737,0.27064576,90434.0,90433.0,0.002]
[1765631260976,0.27464576,90434.0,90433.0,0.002]
[1765631261178,0.22118266,90423.0,90422.0,0.1107]
[1765631261387,0.24794266,90423.0,90422.0,0.11108643]
[1765631261560,0.27067266,90423.0,90422.0,0.11108643]
[1765631261960,0.27067266,90423.0,90422.0,0.00038643]
[1765631262375,0.27167266,90423.0,90422.0,0.00038643]
[1765631263528,0.27367266,90423.0,90422.0,0.00038643]
[1765631266828,0.05249,90423.0,90422.0,0.00038643]
[1765631267435,0.27367266,90423.0,90422.0,0.00038643]
[1765631267756,0.05249,90423.0,90422.0,0.00038643]
[1765631270629,0.27367266,90423.0,90422.0,0.00038643]
[1765631272634,0.05249,90423.0,90422.0,0.00038643]
[1765631273258,0.05249,90423.0,90422.0,0.11108643]
[1765631282432,0.05249,90423.0,90422.0,0.00038643]
[1765631282897,0.08013783,90423.0,90422.0,0.00038643]
[1765631283244,0.05249,90423.0,90422.0,0.00038643]
[1765631283462,0.08013783,90423.0,90422.0,0.00038643]
[1765631284706,0.07813783,90423.0,90422.0,0.00038643]
[1765631285067,0.08113783,90423.0,90422.0,0.00038643]
[1765631285661,0.08013783,90423.0,90422.0,0.00038643]
[1765631286120,0.08213783,90423.0,90422.0,0.00038643]
[1765631304230,0.05449,90423.0,90422.0,0.00038643]
[1765631304863,0.03176,90423.0,90422.0,0.00038643]
[1765631305117,0.03176,90423.0,90422.0,0.22157153]
[1765631305118,0.005,90423.0,90422.0,0.22157153]
[1765631305322,0.04494,90423.0,90422.0,0.00038643]
[1765631306142,0.04194,90423.0,90422.0,0.00038643]
[1765631306776,0.03994,90423.0,90422.0,0.00038643]
[1765631311505,0.06758783,90423.0,90422.0,0.00038643]
[1765631312428,0.03994,90423.0,90422.0,0.00038643]
[1765631312785,0.04094,90423.0,90422.0,0.00038643]
[1765631313596,0.04194,90423.0,90422.0,0.00038643]
[1765631316090,0.06958783,90423.0,90422.0,0.00038643]
[1765631317846,0.06119245,90423.0,90422.0,0.00038643]
[1765631318030,0.06958783,90423.0,90422.0,0.00038643]
[1765631320833,0.06858783,90423.0,90422.0,0.00038643]
[1765631321032,0.06758783,90423.0,90422.0,0.00038643]
[1765631321422,0.06858783,90423.0,90422.0,0.00038643]
[1765631321857,0.01106109,90407.0,90404.0,0.01106145]
[1765631322062,0.02833,90404.0,90403.0,0.01106157]
[1765631322257,0.02833,90404.0,90403.0,0.01117752]
[1765631322431,0.05166,90404.0,90403.0,0.01117752]
[1765631323223,0.05166,90404.0,90403.0,0.01417752]
[1765631324452,0.01172,90408.0,90405.0,0.01106133]
[1765631324592,0.02333,90407.0,90405.0,0.23228599]
[1765631325481,0.03505,90407.0,90405.0,0.23228599]
[1765631325629,0.03505,90407.0,90405.0,0.23428599]
[1765631325995,0.01172,90420.0,90413.0,0.01106035]
[1765631326200,0.01172,90420.0,90418.0,0.22119489]
[1765631326857,0.00015357,90422.0,90418.0,0.22119489]
[1765631327642,0.02348357,90422.0,90418.0,0.22119489]
[1765631327992,0.03895328,90419.0,90418.0,0.22119489]
[1765631328210,0.03995328,90419.0,90418.0,0.22119489]
[1765631328783,0.03895328,90419.0,90418.0,0.22119489]
[1765631328943,0.03995328,90419.0,90418.0,0.22119489]
[1765631330796,0.06328328,90419.0,90418.0,0.22119489]
[1765631330997,0.07989328,90419.0,90418.0,0.22119489]
[1765631331820,0.09161328,90419.0,90418.0,0.22119489]
[1765631334748,0.09161328,90419.0,90416.0,0.34295877]
[1765631334972,0.01508,90417.0,90416.0,0.34295877]
[1765631335419,0.03949,90417.0,90416.0,0.34295877]
[1765631335881,0.03949,90417.0,90416.0,0.34295976]
[1765631337934,0.04049,90417.0,90416.0,0.34295976]
[1765631338794,0.04049,90417.0,90416.0,0.12175998]
[1765631338957,0.04049,90417.0,90416.0,0.34295976]
[1765631343070,0.04049,90417.0,90416.0,0.12175998]
[1765631345722,0.001,90417.0,90416.0,0.12175998]
[1765631352645,0.03795328,90419.0,90418.0,0.1107]
[1765631355763,0.00015357,90422.0,90421.0,0.33188755]
[1765631356892,0.00115357,90422.0,90421.0,0.33188755]
[1765631357097,0.00215357,90422.0,90421.0,0.33188755]
[1765631359437,0.00215357,90422.0,90421.0,0.22118755]
[1765631360295,0.00215357,90422.0,90421.0,0.33188755]
[1765631361656,0.02156357,90426.0,90425.0,0.33187777]
[1765631362086,0.01156,90432.0,90429.0,0.01105839]
[1765631362291,0.01156,90432.0,90431.0,0.22116309]
[1765631363725,0.03812,90432.0,90431.0,0.22116309]
[1765631364228,0.05336,90432.0,90431.0,0.22116309]
[1765631366916,0.05336,90432.0,90430.0,0.1107]
[1765631367121,0.03921,90431.0,90430.0,0.1107]
[1765631367293,0.01105839,90429.0,90425.0,0.01105888]
[1765631367496,0.04082287,90431.0,90426.0,0.22117532]
[1765631367497,0.03315961,90427.0,90426.0,0.22117532]
[1765631367946,0.08377961,90427.0,90426.0,0.22117532]
[1765631369061,0.08477961,90427.0,90426.0,0.22117532]
[1765631369491,0.08577961,90427.0,90426.0,0.22117532]
[1765631372023,0.08577961,90427.0,90426.0,0.33187532]
[1765631374745,0.02967,90427.0,90426.0,0.33187532]
[1765631374953,0.01341,90427.0,90426.0,0.33187532]
[1765631375155,0.002,90427.0,90426.0,0.33187532]
[1765631390055,0.002,90427.0,90426.0,0.22117532]
[1765631390226,0.002,90427.0,90426.0,0.33187532]
[1765631406855,0.02986,90427.0,90426.0,0.33187532]
[1765631407160,0.02986,90427.0,90417.0,0.38761918]
[1765631407161,0.01106292,90392.0,90383.0,0.01106402]
[1765631407362,0.01106292,90392.0,90384.0,0.0110639]
[1765631407565,0.01106317,90390.0,90386.0,0.01106366]
[1765631407967,0.02240304,90391.0,90386.0,0.23233451]
[1765631408323,0.04547304,90391.0,90386.0,0.23233451]
[1765631408790,0.01106317,90390.0,90387.0,0.01106353]
[1765631410217,0.01134,90391.0,90388.0,0.01106341]
[1765631410459,0.04547304,90391.0,90387.0,0.01206353]
[1765631410855,0.01106317,90390.0,90387.0,0.001]
[1765631411070,0.01106317,90390.0,90387.0,0.01306353]
[1765631411242,0.04547304,90391.0,90387.0,0.01206353]
[1765631411444,0.04547304,90391.0,90388.0,0.001]
[1765631412075,0.02240304,90391.0,90388.0,0.01206341]
[1765631412430,0.05622961,90390.0,90388.0,0.001]
[1765631412832,0.06729278,90390.0,90387.0,0.01206353]
[1765631413319,0.04422278,90390.0,90387.0,0.01106353]
[1765631413512,0.06729278,90390.0,90387.0,0.01106353]
[1765631414088,0.03413329,90389.0,90385.0,0.01106378]
[1765631414292,0.03413329,90389.0,90388.0,0.1107]
[1765631414493,0.02240329,90389.0,90388.0,0.1107]
[1765631414721,0.01106353,90387.0,90384.0,0.0110639]
[1765631414926,0.01106366,90386.0,90383.0,0.01117997]
[1765631415164,0.03413366,90386.0,90383.0,0.01117997]
[1765631415348,0.03413366,90386.0,90383.0,0.00011595]
[1765631415579,0.02307,90385.0,90383.0,0.00011595]
[1765631416136,0.01106353,90387.0,90383.0,0.01117997]
[1765631416546,0.01106353,90387.0,90384.0,0.232342]
[1765631417753,0.26674132,90389.0,90385.0,0.01106378]
[1765631417963,0.02307,90388.0,90385.0,0.01106378]
[1765631421486,0.02307,90388.0,90386.0,0.2212732]
[1765631421697,0.01134,90389.0,90386.0,0.23233686]
[1765631421903,0.01134,90389.0,90388.0,0.2212683]
[1765631423509,0.01234,90389.0,90388.0,0.2212683]
[1765631424084,0.001,90389.0,90388.0,0.2212683]
[1765631425312,0.001,90389.0,90387.0,0.22126911]
[1765631426269,0.02240304,90391.0,90387.0,0.23233264]
[1765631426478,0.03516,90391.0,90388.0,0.23232981]
[1765631426683,0.001,90389.0,90388.0,0.01106341]
[1765631427086,0.04622304,90391.0,90390.0,0.1107]
[1765631427875,0.06170304,90391.0,90390.0,0.1107]
[1765631428397,0.06270304,90391.0,90390.0,0.1107]
[1765631428739,0.06170304,90391.0,90390.0,0.1107]
[1765631428943,0.05064,90391.0,90390.0,0.1107]
[1765631429202,0.05164,90391.0,90390.0,0.1107]
[1765631429401,0.05164,90391.0,90390.0,0.33196341]
[1765631429581,0.02782,90391.0,90390.0,0.33196341]
[1765631429964,0.05164,90391.0,90390.0,0.33196341]
[1765631430787,0.05164,90391.0,90388.0,0.12176341]
[1765631430951,0.02382,90390.0,90388.0,0.34302929]
[1765631431985,0.02482,90390.0,90388.0,0.34302929]
[1765631436386,0.001,90390.0,90388.0,0.34302929]
[1765631438298,0.001,90390.0,90388.0,0.12176341]
[1765631438498,0.05036329,90389.0,90385.0,0.01106378]
[1765631438728,0.02747,90386.0,90383.0,0.11081595]
[1765631439143,0.0393,90385.0,90383.0,0.00011595]
[1765631439341,0.01548,90384.0,90383.0,0.00011595]
[1765631439520,0.0393,90384.0,90383.0,0.00011595]
[1765631440510,0.0393,90384.0,90383.0,0.00111595]
[1765631443394,0.2605781,90384.0,90383.0,0.00111595]
[1765631443772,0.0393,90384.0,90383.0,0.00111595]
[1765631455784,0.2605781,90384.0,90383.0,0.00111595]
[1765631456168,0.0393,90384.0,90383.0,0.00111595]
[1765631459759,0.04091287,90384.0,90383.0,0.00111595]
[1765631462262,0.04091287,90384.0,90383.0,0.00011595]
[1765631462467,0.04191287,90384.0,90383.0,0.00011595]
[1765631463169,0.04391287,90384.0,90383.0,0.00011595]
[1765631464422,0.07157263,90384.0,90383.0,0.00011595]
[1765631473134,0.04391287,90384.0,90383.0,0.00011595]
[1765631478351,0.26519097,90384.0,90383.0,0.00011595]
[1765631480452,0.04391287,90384.0,90383.0,0.00011595]
[1765631480652,0.07157263,90384.0,90383.0,0.00011595]
[1765631483568,0.04391287,90384.0,90383.0,0.00011595]
[1765631487409,0.07157263,90384.0,90383.0,0.00011595]
[1765631494501,0.08318263,90384.0,90383.0,0.00011595]
[1765631533572,0.09424726,90384.0,90383.0,0.00011595]
[1765631557780,0.09424726,90384.0,90383.0,0.11081595]
[1765631558029,0.09424726,90384.0,90383.0,0.00011595]
[1765631558030,0.0665875,90384.0,90383.0,0.00011595]
[1765631558150,0.0427675,90384.0,90383.0,0.00011595]
[1765631558572,0.003,90384.0,90383.0,0.00011595]
[1765631558773,0.003,90384.0,90383.0,0.11081595]
[1765631558974,0.003,90384.0,90383.0,0.14404165]
[1765631559407,0.003,90384.0,90383.0,0.16148165]
[1765631559734,0.01945,90384.0,90383.0,0.03334165]
[1765631560586,0.01645,90384.0,90383.0,0.03334165]
[1765631569853,0.03956,90384.0,90383.0,0.03334165]
[1765631570156,0.01163,90387.0,90384.0,0.232342]
[1765631570503,0.01163,90387.0,90386.0,0.2212732]
[1765631570722,0.01163,90387.0,90386.0,0.3319732]
[1765631571391,0.01263,90387.0,90386.0,0.3319732]
[1765631571552,0.01263,90387.0,90386.0,0.36519956]
[1765631572039,0.01163,90387.0,90386.0,0.36519956]
[1765631572602,0.01263,90387.0,90386.0,0.36519956]
[1765631572922,0.001,90387.0,90386.0,0.36519956]
[1765631576919,0.001,90387.0,90386.0,0.25449956]
[1765631581012,0.02409,90387.0,90386.0,0.25449956]
[1765631581815,0.02409,90387.0,90386.0,0.36519956]
[1765631582260,0.001,90387.0,90386.0,0.36519956]
[1765631583926,0.04058,90387.0,90386.0,0.36519956]
[1765631585970,0.04058,90387.0,90386.0,0.25449956]
[1765631589471,0.04058,90387.0,90386.0,0.25663221]
[1765631591711,0.04058,90387.0,90386.0,0.03535901]
[1765631594138,0.04058,90387.0,90386.0,0.00213265]
[1765631596720,0.04058,90387.0,90386.0,0.11283265]
[1765631597536,0.04058,90387.0,90386.0,0.00213265]
[1765631599443,0.07535248,90387.0,90386.0,0.00213265]
[1765631608802,0.10301132,90387.0,90386.0,0.00213265]
[1765631609692,0.06985171,90387.0,90386.0,0.00213265]
[1765631612165,0.10301132,90387.0,90386.0,0.00213265]
[1765631612423,0.04219287,90387.0,90386.0,0.00213265]
[1765631614622,0.07535248,90387.0,90386.0,0.00213265]
[1765631618451,0.10301132,90387.0,90386.0,0.00213265]
[1765631629867,0.06181845,90387.0,90386.0,0.00213265]
[1765631630077,0.001,90387.0,90386.0,0.22340585]
[1765631630287,0.001,90387.0,90386.0,0.33410585]